Workbook

Sheet Main
B1: Injection Molded Plastic Part Cost Estimator
B2: Design Organization | D2: Mechanical Design Process | I2: Date
B3: Part Evaluated | D3: Part on page 326 4th edition
B5: Shape of part | E5: Part complexity | H5: What finish?
B9: Units | E9: What tolerance? | H9: What material?
B13: =IF(Input!A$5=3,"Diamerter", "Length") -> Length | D13: 3.7
B14: =IF(Input!A$5=3,"", "Width") -> Width | D14: 1.77
B15: Depth into mold | D15: 1.6 | F15: Number of mold cavities | G15: =ROUNDDOWN(Inject!O23,0) -> 3
B16: Wall thickness | D16: 0.1 | F16: Total mold cost | G16: =Inject!O28 -> 89251.79196 | H16: $
B17: Parts to be made | D17: 1000000 | F17: Cycle time per heat | G17: =Inject!O14/G15 -> 2.406093943 | H17: sec
B18: Hourly rate | D18: 35 | E18: $ | F18: working cost per part | G18: =Inject!O32 -> 0.04861240824 | H18: hr
F19: mold cost per part | G19: =Inject!O29 -> 0.08925179196 | H19: $
F20: Cost of material/part | G20: =Inject!O11 -> 0.06477165022 | H20: $
B21: Results | F21: working cost per part | G21: =Inject!O32 -> 0.04861240824 | H21: $
F22: Total cost | G22: =Inject!O33 -> 0.2748642002 | H22: $
B49: The Mechanical Design Process | G49: Designed by Professor David G. Ullman
B50: Copyright 2008, McGraw Hill | G50: Form # 15.0

Sheet Inject (hidden)
A1: Mill
A2: L | D2: =IF(Input!$A$13=1,Main!$D13, Main!$D13/2.54) -> 3.7 | E2: =IF(Input!$A$13=1,Main!$D13, Main!$D13/2.54) -> 3.7 | F2: =IF(Input!$A$13=1,Main!$D13, Main!$D13/2.54) -> 3.7 | G2: =IF(Input!$A$13=1,Main!$D13, Main!$D13/2.54) -> 3.7 | H2: =IF(Input!$A$13=1,Main!$D13, Main!$D13/2.54) -> 3.7 | I2: =IF(Input!$A$13=1,Main!$D13, Main!$D13/2.54) -> 3.7 | J2: =IF(Input!$A$13=1,Main!$D13, Main!$D13/2.54) -> 3.7 | K2: =IF(Input!$A$13=1,Main!$D13, Main!$D13/2.54) -> 3.7 | L2: =IF(Input!$A$13=1,Main!$D13, Main!$D13/2.54) -> 3.7 | M2: =IF(Input!$A$13=1,Main!$D13, Main!$D13/2.54) -> 3.7 | N2: =IF(Input!$A$13=1,Main!$D13, Main!$D13/2.54) -> 3.7 | O2: =IF(Input!$A$13=1,Main!$D13, Main!$D13/2.54) -> 3.7
A3: W | D3: =IF(Input!$A$13=1,Main!$D14, Main!$D14/2.54) -> 1.77 | E3: =IF(Input!$A$13=1,Main!$D14, Main!$D14/2.54) -> 1.77 | F3: =IF(Input!$A$13=1,Main!$D14, Main!$D14/2.54) -> 1.77 | G3: =IF(Input!$A$13=1,Main!$D14, Main!$D14/2.54) -> 1.77 | H3: =IF(Input!$A$13=1,Main!$D14, Main!$D14/2.54) -> 1.77 | I3: =IF(Input!$A$13=1,Main!$D14, Main!$D14/2.54) -> 1.77 | J3: =IF(Input!$A$13=1,Main!$D14, Main!$D14/2.54) -> 1.77 | K3: =IF(Input!$A$13=1,Main!$D14, Main!$D14/2.54) -> 1.77 | L3: =IF(Input!$A$13=1,Main!$D14, Main!$D14/2.54) -> 1.77 | M3: =IF(Input!$A$13=1,Main!$D14, Main!$D14/2.54) -> 1.77 | N3: =IF(Input!$A$13=1,Main!$D14, Main!$D14/2.54) -> 1.77 | O3: =IF(Input!$A$13=1,Main!$D14, Main!$D14/2.54) -> 1.77
A4: D | D4: =IF(Input!$A$13=1,Main!$D15, Main!$D15/2.54) -> 1.6 | E4: =IF(Input!$A$13=1,Main!$D15, Main!$D15/2.54) -> 1.6 | F4: =IF(Input!$A$13=1,Main!$D15, Main!$D15/2.54) -> 1.6 | G4: =IF(Input!$A$13=1,Main!$D15, Main!$D15/2.54) -> 1.6 | H4: =IF(Input!$A$13=1,Main!$D15, Main!$D15/2.54) -> 1.6 | I4: =IF(Input!$A$13=1,Main!$D15, Main!$D15/2.54) -> 1.6 | J4: =IF(Input!$A$13=1,Main!$D15, Main!$D15/2.54) -> 1.6 | K4: =IF(Input!$A$13=1,Main!$D15, Main!$D15/2.54) -> 1.6 | L4: =IF(Input!$A$13=1,Main!$D15, Main!$D15/2.54) -> 1.6 | M4: =IF(Input!$A$13=1,Main!$D15, Main!$D15/2.54) -> 1.6 | N4: =IF(Input!$A$13=1,Main!$D15, Main!$D15/2.54) -> 1.6 | O4: =IF(Input!$A$13=1,Main!$D15, Main!$D15/2.54) -> 1.6
A5: H | D5: =IF(Input!$A$13=1,Main!$D16, Main!$D16/2.54) -> 0.1 | E5: =IF(Input!$A$13=1,Main!$D16, Main!$D16/2.54) -> 0.1 | F5: =IF(Input!$A$13=1,Main!$D16, Main!$D16/2.54) -> 0.1 | G5: =IF(Input!$A$13=1,Main!$D16, Main!$D16/2.54) -> 0.1 | H5: =IF(Input!$A$13=1,Main!$D16, Main!$D16/2.54) -> 0.1 | I5: =IF(Input!$A$13=1,Main!$D16, Main!$D16/2.54) -> 0.1 | J5: =IF(Input!$A$13=1,Main!$D16, Main!$D16/2.54) -> 0.1 | K5: =IF(Input!$A$13=1,Main!$D16, Main!$D16/2.54) -> 0.1 | L5: =IF(Input!$A$13=1,Main!$D16, Main!$D16/2.54) -> 0.1 | M5: =IF(Input!$A$13=1,Main!$D16, Main!$D16/2.54) -> 0.1 | N5: =IF(Input!$A$13=1,Main!$D16, Main!$D16/2.54) -> 0.1 | O5: =IF(Input!$A$13=1,Main!$D16, Main!$D16/2.54) -> 0.1
A6: NT | B6: Number of parts | D6: 100 | E6: 250 | F6: 500 | G6: 1000 | H6: 5000 | I6: 10000 | J6: 50000 | K6: 100000 | L6: 500000 | M6: 1000000 | N6: 10000000 | O6: =Main!D17 -> 1000000
A7: AP | B7: projected area | D7: =IF(Input!$A5=1,D2*D3,IF(Input!$A5=2,D2*D3,0.785*D2^2)) -> 6.549 | E7: =IF(Input!$A5=1,E2*E3,IF(Input!$A5=2,E2*E3,0.785*E2^2)) -> 6.549 | F7: =IF(Input!$A5=1,F2*F3,IF(Input!$A5=2,F2*F3,0.785*F2^2)) -> 6.549 | G7: =IF(Input!$A5=1,G2*G3,IF(Input!$A5=2,G2*G3,0.785*G2^2)) -> 6.549 | H7: =IF(Input!$A5=1,H2*H3,IF(Input!$A5=2,H2*H3,0.785*H2^2)) -> 6.549 | I7: =IF(Input!$A5=1,I2*I3,IF(Input!$A5=2,I2*I3,0.785*I2^2)) -> 6.549 | J7: =IF(Input!$A5=1,J2*J3,IF(Input!$A5=2,J2*J3,0.785*J2^2)) -> 6.549 | K7: =IF(Input!$A5=1,K2*K3,IF(Input!$A5=2,K2*K3,0.785*K2^2)) -> 6.549 | L7: =IF(Input!$A5=1,L2*L3,IF(Input!$A5=2,L2*L3,0.785*L2^2)) -> 6.549 | M7: =IF(Input!$A5=1,M2*M3,IF(Input!$A5=2,M2*M3,0.785*M2^2)) -> 6.549 | N7: =IF(Input!$A5=1,N2*N3,IF(Input!$A5=2,N2*N3,0.785*N2^2)) -> 6.549 | O7: =IF(Input!$A5=1,O2*O3,IF(Input!$A5=2,O2*O3,0.785*O2^2)) -> 6.549
A8: SP | B8: Surface area | D8: =IF(Input!$A5=1,2*D2*D3,IF(Input!$A5=2,D2*D3+D2*D4+D3*D4,3.14*D2*D4+3.14*D2^2/4)) -> 15.301 | E8: =IF(Input!$A5=1,2*E2*E3,IF(Input!$A5=2,E2*E3+E2*E4+E3*E4,3.14*E2*E4+3.14*E2^2/4)) -> 15.301 | F8: =IF(Input!$A5=1,2*F2*F3,IF(Input!$A5=2,F2*F3+F2*F4+F3*F4,3.14*F2*F4+3.14*F2^2/4)) -> 15.301 | G8: =IF(Input!$A5=1,2*G2*G3,IF(Input!$A5=2,G2*G3+G2*G4+G3*G4,3.14*G2*G4+3.14*G2^2/4)) -> 15.301 | H8: =IF(Input!$A5=1,2*H2*H3,IF(Input!$A5=2,H2*H3+H2*H4+H3*H4,3.14*H2*H4+3.14*H2^2/4)) -> 15.301 | I8: =IF(Input!$A5=1,2*I2*I3,IF(Input!$A5=2,I2*I3+I2*I4+I3*I4,3.14*I2*I4+3.14*I2^2/4)) -> 15.301 | J8: =IF(Input!$A5=1,2*J2*J3,IF(Input!$A5=2,J2*J3+J2*J4+J3*J4,3.14*J2*J4+3.14*J2^2/4)) -> 15.301 | K8: =IF(Input!$A5=1,2*K2*K3,IF(Input!$A5=2,K2*K3+K2*K4+K3*K4,3.14*K2*K4+3.14*K2^2/4)) -> 15.301 | L8: =IF(Input!$A5=1,2*L2*L3,IF(Input!$A5=2,L2*L3+L2*L4+L3*L4,3.14*L2*L4+3.14*L2^2/4)) -> 15.301 | M8: =IF(Input!$A5=1,2*M2*M3,IF(Input!$A5=2,M2*M3+M2*M4+M3*M4,3.14*M2*M4+3.14*M2^2/4)) -> 15.301 | N8: =IF(Input!$A5=1,2*N2*N3,IF(Input!$A5=2,N2*N3+N2*N4+N3*N4,3.14*N2*N4+3.14*N2^2/4)) -> 15.301 | O8: =IF(Input!$A5=1,2*O2*O3,IF(Input!$A5=2,O2*O3+O2*O4+O3*O4,3.14*O2*O4+3.14*O2^2/4)) -> 15.301
A9: TR | B9: Resetting time | D9: =IF(Input!$A5=1,3,IF(Input!$A5=2,5,7)) -> 5 | E9: =IF(Input!$A5=1,3,IF(Input!$A5=2,5,7)) -> 5 | F9: =IF(Input!$A5=1,3,IF(Input!$A5=2,5,7)) -> 5 | G9: =IF(Input!$A5=1,3,IF(Input!$A5=2,5,7)) -> 5 | H9: =IF(Input!$A5=1,3,IF(Input!$A5=2,5,7)) -> 5 | I9: =IF(Input!$A5=1,3,IF(Input!$A5=2,5,7)) -> 5 | J9: =IF(Input!$A5=1,3,IF(Input!$A5=2,5,7)) -> 5 | K9: =IF(Input!$A5=1,3,IF(Input!$A5=2,5,7)) -> 5 | L9: =IF(Input!$A5=1,3,IF(Input!$A5=2,5,7)) -> 5 | M9: =IF(Input!$A5=1,3,IF(Input!$A5=2,5,7)) -> 5 | N9: =IF(Input!$A5=1,3,IF(Input!$A5=2,5,7)) -> 5 | O9: =IF(Input!$A5=1,3,IF(Input!$A5=2,5,7)) -> 5
A10: Volume | D10: =IF(Input!$A5=1,(1.15*D2*D3*D5),IF(Input!$A5=2,(1.2*(D2*D3+2*D4*(D2+D3))*D5),(1.2*(3.1415*D3^2/4+3.1415*D3*D4)*D5))) -> 2.88636 | E10: =IF(Input!$A5=1,(1.15*E2*E3*E5),IF(Input!$A5=2,(1.2*(E2*E3+2*E4*(E2+E3))*E5),(1.2*(3.1415*E3^2/4+3.1415*E3*E4)*E5))) -> 2.88636 | F10: =IF(Input!$A5=1,(1.15*F2*F3*F5),IF(Input!$A5=2,(1.2*(F2*F3+2*F4*(F2+F3))*F5),(1.2*(3.1415*F3^2/4+3.1415*F3*F4)*F5))) -> 2.88636 | G10: =IF(Input!$A5=1,(1.15*G2*G3*G5),IF(Input!$A5=2,(1.2*(G2*G3+2*G4*(G2+G3))*G5),(1.2*(3.1415*G3^2/4+3.1415*G3*G4)*G5))) -> 2.88636 | H10: =IF(Input!$A5=1,(1.15*H2*H3*H5),IF(Input!$A5=2,(1.2*(H2*H3+2*H4*(H2+H3))*H5),(1.2*(3.1415*H3^2/4+3.1415*H3*H4)*H5))) -> 2.88636 | I10: =IF(Input!$A5=1,(1.15*I2*I3*I5),IF(Input!$A5=2,(1.2*(I2*I3+2*I4*(I2+I3))*I5),(1.2*(3.1415*I3^2/4+3.1415*I3*I4)*I5))) -> 2.88636 | J10: =IF(Input!$A5=1,(1.15*J2*J3*J5),IF(Input!$A5=2,(1.2*(J2*J3+2*J4*(J2+J3))*J5),(1.2*(3.1415*J3^2/4+3.1415*J3*J4)*J5))) -> 2.88636 | K10: =IF(Input!$A5=1,(1.15*K2*K3*K5),IF(Input!$A5=2,(1.2*(K2*K3+2*K4*(K2+K3))*K5),(1.2*(3.1415*K3^2/4+3.1415*K3*K4)*K5))) -> 2.88636 | L10: =IF(Input!$A5=1,(1.15*L2*L3*L5),IF(Input!$A5=2,(1.2*(L2*L3+2*L4*(L2+L3))*L5),(1.2*(3.1415*L3^2/4+3.1415*L3*L4)*L5))) -> 2.88636 | M10: =IF(Input!$A5=1,(1.15*M2*M3*M5),IF(Input!$A5=2,(1.2*(M2*M3+2*M4*(M2+M3))*M5),(1.2*(3.1415*M3^2/4+3.1415*M3*M4)*M5))) -> 2.88636 | N10: =IF(Input!$A5=1,(1.15*N2*N3*N5),IF(Input!$A5=2,(1.2*(N2*N3+2*N4*(N2+N3))*N5),(1.2*(3.1415*N3^2/4+3.1415*N3*N4)*N5))) -> 2.88636 | O10: =IF(Input!$A5=1,(1.15*O2*O3*O5),IF(Input!$A5=2,(1.2*(O2*O3+2*O4*(O2+O3))*O5),(1.2*(3.1415*O3^2/4+3.1415*O3*O4)*O5))) -> 2.88636
A11: MATCOS | B11: cost of material | D11: =Input!$A31*D10 -> 0.06477165022 | E11: =Input!$A31*E10 -> 0.06477165022 | F11: =Input!$A31*F10 -> 0.06477165022 | G11: =Input!$A31*G10 -> 0.06477165022 | H11: =Input!$A31*H10 -> 0.06477165022 | I11: =Input!$A31*I10 -> 0.06477165022 | J11: =Input!$A31*J10 -> 0.06477165022 | K11: =Input!$A31*K10 -> 0.06477165022 | L11: =Input!$A31*L10 -> 0.06477165022 | M11: =Input!$A31*M10 -> 0.06477165022 | N11: =Input!$A31*N10 -> 0.06477165022 | O11: =Input!$A31*O10 -> 0.06477165022
A12: TF | B12: filling time | D12: =D9*0.1 -> 0.5 | E12: =E9*0.1 -> 0.5 | F12: 0.5 | G12: 0.5 | H12: 0.5 | I12: 0.5 | J12: 0.5 | K12: 0.5 | L12: =L9*0.1 -> 0.5 | M12: =M9*0.1 -> 0.5 | N12: =N9*0.1 -> 0.5 | O12: 0.5
A13: TC | B13: cooling time | D13: =IF(Input!$A28=1,1.1*(D5*10)^2.1,IF(Input!$A28=2,(D5*10)^2,IF(Input!$A28=3,0.92*(D5*10)^2,IF(Input!$A28=4,2.4*(D5*10)^1.9,EXP(D5*10)-1)))) -> 1.718281828 | E13: =IF(Input!$A28=1,1.1*(E5*10)^2.1,IF(Input!$A28=2,(E5*10)^2,IF(Input!$A28=3,0.92*(E5*10)^2,IF(Input!$A28=4,2.4*(E5*10)^1.9,EXP(E5*10)-1)))) -> 1.718281828 | F13: =IF(Input!$A28=1,1.1*(F5*10)^2.1,IF(Input!$A28=2,(F5*10)^2,IF(Input!$A28=3,0.92*(F5*10)^2,IF(Input!$A28=4,2.4*(F5*10)^1.9,EXP(F5*10)-1)))) -> 1.718281828 | G13: =IF(Input!$A28=1,1.1*(G5*10)^2.1,IF(Input!$A28=2,(G5*10)^2,IF(Input!$A28=3,0.92*(G5*10)^2,IF(Input!$A28=4,2.4*(G5*10)^1.9,EXP(G5*10)-1)))) -> 1.718281828 | H13: =IF(Input!$A28=1,1.1*(H5*10)^2.1,IF(Input!$A28=2,(H5*10)^2,IF(Input!$A28=3,0.92*(H5*10)^2,IF(Input!$A28=4,2.4*(H5*10)^1.9,EXP(H5*10)-1)))) -> 1.718281828 | I13: =IF(Input!$A28=1,1.1*(I5*10)^2.1,IF(Input!$A28=2,(I5*10)^2,IF(Input!$A28=3,0.92*(I5*10)^2,IF(Input!$A28=4,2.4*(I5*10)^1.9,EXP(I5*10)-1)))) -> 1.718281828 | J13: =IF(Input!$A28=1,1.1*(J5*10)^2.1,IF(Input!$A28=2,(J5*10)^2,IF(Input!$A28=3,0.92*(J5*10)^2,IF(Input!$A28=4,2.4*(J5*10)^1.9,EXP(J5*10)-1)))) -> 1.718281828 | K13: =IF(Input!$A28=1,1.1*(K5*10)^2.1,IF(Input!$A28=2,(K5*10)^2,IF(Input!$A28=3,0.92*(K5*10)^2,IF(Input!$A28=4,2.4*(K5*10)^1.9,EXP(K5*10)-1)))) -> 1.718281828 | L13: =IF(Input!$A28=1,1.1*(L5*10)^2.1,IF(Input!$A28=2,(L5*10)^2,IF(Input!$A28=3,0.92*(L5*10)^2,IF(Input!$A28=4,2.4*(L5*10)^1.9,EXP(L5*10)-1)))) -> 1.718281828 | M13: =IF(Input!$A28=1,1.1*(M5*10)^2.1,IF(Input!$A28=2,(M5*10)^2,IF(Input!$A28=3,0.92*(M5*10)^2,IF(Input!$A28=4,2.4*(M5*10)^1.9,EXP(M5*10)-1)))) -> 1.718281828 | N13: =IF(Input!$A28=1,1.1*(N5*10)^2.1,IF(Input!$A28=2,(N5*10)^2,IF(Input!$A28=3,0.92*(N5*10)^2,IF(Input!$A28=4,2.4*(N5*10)^1.9,EXP(N5*10)-1)))) -> 1.718281828 | O13: =IF(Input!$A28=1,1.1*(O5*10)^2.1,IF(Input!$A28=2,(O5*10)^2,IF(Input!$A28=3,0.92*(O5*10)^2,IF(Input!$A28=4,2.4*(O5*10)^1.9,EXP(O5*10)-1)))) -> 1.718281828
A14: TMAC | B14: cycle time | D14: =D9+D12+D13 -> 7.218281828 | E14: 7.218281828 | F14: 7.218281828 | G14: 7.218281828 | H14: 7.218281828 | I14: 7.218281828 | J14: 7.218281828 | K14: 7.218281828 | L14: 7.218281828 | M14: 7.218281828 | N14: 7.218281828 | O14: 7.218281828
A15: AT | B15: size effect | D15: =5+0.25*(100*D7)^0.5+0.2*D7 -> 12.70755351 | E15: =5+0.25*(100*E7)^0.5+0.2*E7 -> 12.70755351 | F15: 12.70755351 | G15: 12.70755351 | H15: 12.70755351 | I15: 12.70755351 | J15: 12.70755351 | K15: 12.70755351 | L15: =5+0.25*(100*L7)^0.5+0.2*L7 -> 12.70755351 | M15: =5+0.25*(100*M7)^0.5+0.2*M7 -> 12.70755351 | N15: =5+0.25*(100*N7)^0.5+0.2*N7 -> 12.70755351 | O15: 12.70755351
A16: TX | B16: texture score | D16: =0.025*(D15+Input!$C9) -> 4.630188838 | E16: =0.025*(E15+Input!$C9) -> 4.630188838 | F16: =0.025*(F15+Input!$C9) -> 4.630188838 | G16: =0.025*(G15+Input!$C9) -> 4.630188838 | H16: =0.025*(H15+Input!$C9) -> 4.630188838 | I16: =0.025*(I15+Input!$C9) -> 4.630188838 | J16: =0.025*(J15+Input!$C9) -> 4.630188838 | K16: =0.025*(K15+Input!$C9) -> 4.630188838 | L16: =0.025*(L15+Input!$C9) -> 4.630188838 | M16: =0.025*(M15+Input!$C9) -> 4.630188838 | N16: =0.025*(N15+Input!$C9) -> 4.630188838 | O16: =0.025*(O15+Input!$C9) -> 4.630188838
A17: TT | B17: tolerance dependence | D17: =IF(AND(Input!$A$9=1,Input!$A$17=1),1.5,IF(AND(Input!$A$9=1,Input!$A$17=2),7.5,IF(AND(Input!$A$9=1,Input!$A$17=3),18.75,IF(AND(Input!$A$9=2,Input!$A$17=1),3.5,IF(AND(Input!$A$9=2,Input!$A$17=2),17.5,IF(AND(Input!$A$9=2,Input!$A$17=3),43.7,IF(Input!$A$17=1,5.5,IF(Input!$A$17=2,27.5,68.75)))))))) -> 17.5 | E17: =IF(AND(Input!$A$9=1,Input!$A$17=1),1.5,IF(AND(Input!$A$9=1,Input!$A$17=2),7.5,IF(AND(Input!$A$9=1,Input!$A$17=3),18.75,IF(AND(Input!$A$9=2,Input!$A$17=1),3.5,IF(AND(Input!$A$9=2,Input!$A$17=2),17.5,IF(AND(Input!$A$9=2,Input!$A$17=3),43.7,IF(Input!$A$17=1,5.5,IF(Input!$A$17=2,27.5,68.75)))))))) -> 17.5 | F17: =IF(AND(Input!$A$9=1,Input!$A$17=1),1.5,IF(AND(Input!$A$9=1,Input!$A$17=2),7.5,IF(AND(Input!$A$9=1,Input!$A$17=3),18.75,IF(AND(Input!$A$9=2,Input!$A$17=1),3.5,IF(AND(Input!$A$9=2,Input!$A$17=2),17.5,IF(AND(Input!$A$9=2,Input!$A$17=3),43.7,IF(Input!$A$17=1,5.5,IF(Input!$A$17=2,27.5,68.75)))))))) -> 17.5 | G17: =IF(AND(Input!$A$9=1,Input!$A$17=1),1.5,IF(AND(Input!$A$9=1,Input!$A$17=2),7.5,IF(AND(Input!$A$9=1,Input!$A$17=3),18.75,IF(AND(Input!$A$9=2,Input!$A$17=1),3.5,IF(AND(Input!$A$9=2,Input!$A$17=2),17.5,IF(AND(Input!$A$9=2,Input!$A$17=3),43.7,IF(Input!$A$17=1,5.5,IF(Input!$A$17=2,27.5,68.75)))))))) -> 17.5 | H17: =IF(AND(Input!$A$9=1,Input!$A$17=1),1.5,IF(AND(Input!$A$9=1,Input!$A$17=2),7.5,IF(AND(Input!$A$9=1,Input!$A$17=3),18.75,IF(AND(Input!$A$9=2,Input!$A$17=1),3.5,IF(AND(Input!$A$9=2,Input!$A$17=2),17.5,IF(AND(Input!$A$9=2,Input!$A$17=3),43.7,IF(Input!$A$17=1,5.5,IF(Input!$A$17=2,27.5,68.75)))))))) -> 17.5 | I17: =IF(AND(Input!$A$9=1,Input!$A$17=1),1.5,IF(AND(Input!$A$9=1,Input!$A$17=2),7.5,IF(AND(Input!$A$9=1,Input!$A$17=3),18.75,IF(AND(Input!$A$9=2,Input!$A$17=1),3.5,IF(AND(Input!$A$9=2,Input!$A$17=2),17.5,IF(AND(Input!$A$9=2,Input!$A$17=3),43.7,IF(Input!$A$17=1,5.5,IF(Input!$A$17=2,27.5,68.75)))))))) -> 17.5 | J17: =IF(AND(Input!$A$9=1,Input!$A$17=1),1.5,IF(AND(Input!$A$9=1,Input!$A$17=2),7.5,IF(AND(Input!$A$9=1,Input!$A$17=3),18.75,IF(AND(Input!$A$9=2,Input!$A$17=1),3.5,IF(AND(Input!$A$9=2,Input!$A$17=2),17.5,IF(AND(Input!$A$9=2,Input!$A$17=3),43.7,IF(Input!$A$17=1,5.5,IF(Input!$A$17=2,27.5,68.75)))))))) -> 17.5 | K17: =IF(AND(Input!$A$9=1,Input!$A$17=1),1.5,IF(AND(Input!$A$9=1,Input!$A$17=2),7.5,IF(AND(Input!$A$9=1,Input!$A$17=3),18.75,IF(AND(Input!$A$9=2,Input!$A$17=1),3.5,IF(AND(Input!$A$9=2,Input!$A$17=2),17.5,IF(AND(Input!$A$9=2,Input!$A$17=3),43.7,IF(Input!$A$17=1,5.5,IF(Input!$A$17=2,27.5,68.75)))))))) -> 17.5 | L17: =IF(AND(Input!$A$9=1,Input!$A$17=1),1.5,IF(AND(Input!$A$9=1,Input!$A$17=2),7.5,IF(AND(Input!$A$9=1,Input!$A$17=3),18.75,IF(AND(Input!$A$9=2,Input!$A$17=1),3.5,IF(AND(Input!$A$9=2,Input!$A$17=2),17.5,IF(AND(Input!$A$9=2,Input!$A$17=3),43.7,IF(Input!$A$17=1,5.5,IF(Input!$A$17=2,27.5,68.75)))))))) -> 17.5 | M17: =IF(AND(Input!$A$9=1,Input!$A$17=1),1.5,IF(AND(Input!$A$9=1,Input!$A$17=2),7.5,IF(AND(Input!$A$9=1,Input!$A$17=3),18.75,IF(AND(Input!$A$9=2,Input!$A$17=1),3.5,IF(AND(Input!$A$9=2,Input!$A$17=2),17.5,IF(AND(Input!$A$9=2,Input!$A$17=3),43.7,IF(Input!$A$17=1,5.5,IF(Input!$A$17=2,27.5,68.75)))))))) -> 17.5 | N17: =IF(AND(Input!$A$9=1,Input!$A$17=1),1.5,IF(AND(Input!$A$9=1,Input!$A$17=2),7.5,IF(AND(Input!$A$9=1,Input!$A$17=3),18.75,IF(AND(Input!$A$9=2,Input!$A$17=1),3.5,IF(AND(Input!$A$9=2,Input!$A$17=2),17.5,IF(AND(Input!$A$9=2,Input!$A$17=3),43.7,IF(Input!$A$17=1,5.5,IF(Input!$A$17=2,27.5,68.75)))))))) -> 17.5 | O17: =IF(AND(Input!$A$9=1,Input!$A$17=1),1.5,IF(AND(Input!$A$9=1,Input!$A$17=2),7.5,IF(AND(Input!$A$9=1,Input!$A$17=3),18.75,IF(AND(Input!$A$9=2,Input!$A$17=1),3.5,IF(AND(Input!$A$9=2,Input!$A$17=2),17.5,IF(AND(Input!$A$9=2,Input!$A$17=3),43.7,IF(Input!$A$17=1,5.5,IF(Input!$A$17=2,27.5,68.75)))))))) -> 17.5
A18: TH | B18: finish dependence | D18: =IF(Input!$A21=1,(1.5*0.035*10*D8^0.5),IF(Input!$A21=2,(1.5*0.06*10*D8^0.5),1.5*0.1*10*D8^0.5)) -> 2.053615866 | E18: =IF(Input!$A21=1,(1.5*0.035*10*E8^0.5),IF(Input!$A21=2,(1.5*0.06*10*E8^0.5),1.5*0.1*10*E8^0.5)) -> 2.053615866 | F18: =IF(Input!$A21=1,(1.5*0.035*10*F8^0.5),IF(Input!$A21=2,(1.5*0.06*10*F8^0.5),1.5*0.1*10*F8^0.5)) -> 2.053615866 | G18: =IF(Input!$A21=1,(1.5*0.035*10*G8^0.5),IF(Input!$A21=2,(1.5*0.06*10*G8^0.5),1.5*0.1*10*G8^0.5)) -> 2.053615866 | H18: =IF(Input!$A21=1,(1.5*0.035*10*H8^0.5),IF(Input!$A21=2,(1.5*0.06*10*H8^0.5),1.5*0.1*10*H8^0.5)) -> 2.053615866 | I18: =IF(Input!$A21=1,(1.5*0.035*10*I8^0.5),IF(Input!$A21=2,(1.5*0.06*10*I8^0.5),1.5*0.1*10*I8^0.5)) -> 2.053615866 | J18: =IF(Input!$A21=1,(1.5*0.035*10*J8^0.5),IF(Input!$A21=2,(1.5*0.06*10*J8^0.5),1.5*0.1*10*J8^0.5)) -> 2.053615866 | K18: =IF(Input!$A21=1,(1.5*0.035*10*K8^0.5),IF(Input!$A21=2,(1.5*0.06*10*K8^0.5),1.5*0.1*10*K8^0.5)) -> 2.053615866 | L18: =IF(Input!$A21=1,(1.5*0.035*10*L8^0.5),IF(Input!$A21=2,(1.5*0.06*10*L8^0.5),1.5*0.1*10*L8^0.5)) -> 2.053615866 | M18: =IF(Input!$A21=1,(1.5*0.035*10*M8^0.5),IF(Input!$A21=2,(1.5*0.06*10*M8^0.5),1.5*0.1*10*M8^0.5)) -> 2.053615866 | N18: =IF(Input!$A21=1,(1.5*0.035*10*N8^0.5),IF(Input!$A21=2,(1.5*0.06*10*N8^0.5),1.5*0.1*10*N8^0.5)) -> 2.053615866 | O18: =IF(Input!$A21=1,(1.5*0.035*10*O8^0.5),IF(Input!$A21=2,(1.5*0.06*10*O8^0.5),1.5*0.1*10*O8^0.5)) -> 2.053615866
A19: CL | B19: cost per cavity | D19: =(D15+Input!$C9+Input!$E9+D17+D18+D16)*Main!$D18 -> 14328.69754 | E19: =(E15+Input!$C9+Input!$E9+E17+E18+E16)*Main!$D18 -> 14328.69754 | F19: =(F15+Input!$C9+Input!$E9+F17+F18+F16)*Main!$D18 -> 14328.69754 | G19: =(G15+Input!$C9+Input!$E9+G17+G18+G16)*Main!$D18 -> 14328.69754 | H19: =(H15+Input!$C9+Input!$E9+H17+H18+H16)*Main!$D18 -> 14328.69754 | I19: =(I15+Input!$C9+Input!$E9+I17+I18+I16)*Main!$D18 -> 14328.69754 | J19: =(J15+Input!$C9+Input!$E9+J17+J18+J16)*Main!$D18 -> 14328.69754 | K19: =(K15+Input!$C9+Input!$E9+K17+K18+K16)*Main!$D18 -> 14328.69754 | L19: =(L15+Input!$C9+Input!$E9+L17+L18+L16)*Main!$D18 -> 14328.69754 | M19: =(M15+Input!$C9+Input!$E9+M17+M18+M16)*Main!$D18 -> 14328.69754 | N19: =(N15+Input!$C9+Input!$E9+N17+N18+N16)*Main!$D18 -> 14328.69754 | O19: =(O15+Input!$C9+Input!$E9+O17+O18+O16)*Main!$D18 -> 14328.69754
A20: CRL | D20: =(Main!$D18+45)*0.93 -> 74.4 | E20: =(Main!$D18+45)*0.93 -> 74.4 | F20: =(Main!$D18+45)*0.93 -> 74.4 | G20: =(Main!$D18+45)*0.93 -> 74.4 | H20: =(Main!$D18+45)*0.93 -> 74.4 | I20: =(Main!$D18+45)*0.93 -> 74.4 | J20: =(Main!$D18+45)*0.93 -> 74.4 | K20: =(Main!$D18+45)*0.93 -> 74.4 | L20: =(Main!$D18+45)*0.93 -> 74.4 | M20: =(Main!$D18+45)*0.93 -> 74.4 | N20: =(Main!$D18+45)*0.93 -> 74.4 | O20: =(Main!$D18+45)*0.93 -> 74.4
A21: CRN | D21: =(Main!$D18+45)*3.6 -> 288 | E21: =(Main!$D18+45)*3.6 -> 288 | F21: =(Main!$D18+45)*3.6 -> 288 | G21: =(Main!$D18+45)*3.6 -> 288 | H21: =(Main!$D18+45)*3.6 -> 288 | I21: =(Main!$D18+45)*3.6 -> 288 | J21: =(Main!$D18+45)*3.6 -> 288 | K21: =(Main!$D18+45)*3.6 -> 288 | L21: =(Main!$D18+45)*3.6 -> 288 | M21: =(Main!$D18+45)*3.6 -> 288 | N21: =(Main!$D18+45)*3.6 -> 288 | O21: =(Main!$D18+45)*3.6 -> 288
A22: NCC | D22: =(D6/D19*(D20*8500-D21*300)/(8200*1.71)*D14/(3600*0.85))^0.6035 -> 0.01182924789 | E22: 0.02056429987 | F22: 0.03124535983 | G22: 0.04747414292 | H22: 0.1253965334 | I22: 0.1905272648 | J22: 0.5032520243 | K22: 0.7646402108 | L22: 2.019693792 | M22: 3.068719075 | N22: 12.31564418 | O22: 3.068719075
A23: NC | B23: number of cavities | D23: =IF(D22<1,1,D22) -> 1 | E23: 1 | F23: 1 | G23: 1 | H23: 1 | I23: 1 | J23: 1 | K23: 1 | L23: 2.019693792 | M23: 3.068719075 | N23: 12.31564418 | O23: 3.068719075
A24: HP | D24: =IF(Input!$A9=1,D4+10,D4+15) -> 16.6 | E24: =IF(Input!$A9=1,E4+10,E4+15) -> 16.6 | F24: =IF(Input!$A9=1,F4+10,F4+15) -> 16.6 | G24: =IF(Input!$A9=1,G4+10,G4+15) -> 16.6 | H24: =IF(Input!$A9=1,H4+10,H4+15) -> 16.6 | I24: =IF(Input!$A9=1,I4+10,I4+15) -> 16.6 | J24: =IF(Input!$A9=1,J4+10,J4+15) -> 16.6 | K24: =IF(Input!$A9=1,K4+10,K4+15) -> 16.6 | L24: =IF(Input!$A9=1,L4+10,L4+15) -> 16.6 | M24: =IF(Input!$A9=1,M4+10,M4+15) -> 16.6 | N24: =IF(Input!$A9=1,N4+10,N4+15) -> 16.6 | O24: =IF(Input!$A9=1,O4+10,O4+15) -> 16.6
A25: Aca | D25: =(D2+5)*(D3+5)*D23+5*(D2+D3+10)*D23^0.5+25 -> 161.249 | E25: 161.249 | F25: 161.249 | G25: 161.249 | H25: 161.249 | I25: 161.249 | J25: 161.249 | K25: 161.249 | L25: 253.8846175 | M25: 341.2443567 | N25: 1021.828526 | O25: 341.2443567
A26: CB | B26: plate cost | D26: =1000+45*D25*D24^0.4 -> 23323.01129 | E26: 23323.01129 | F26: 23323.01129 | G26: 23323.01129 | H26: 23323.01129 | I26: 23323.01129 | J26: 23323.01129 | K26: 23323.01129 | L26: 36147.31368 | M26: 48241.2333 | N26: 142460.0383 | O26: 48241.2333
A27: CN | B27: multicavity cost | D27: =D19*((1.71*D23^0.657)-0.71) -> 14328.69754 | E27: =E19*((1.71*E23^0.657)-0.71) -> 14328.69754 | F27: 14328.69754 | G27: 14328.69754 | H27: 14328.69754 | I27: 14328.69754 | J27: 14328.69754 | K27: 14328.69754 | L27: =L19*((1.71*L23^0.657)-0.71) -> 28711.02629 | M27: =M19*((1.71*M23^0.657)-0.71) -> 41010.55866 | N27: =N19*((1.71*N23^0.657)-0.71) -> 117362.7335 | O27: 41010.55866
A28: Mcost | B28: moldcost | D28: =D26+D27 -> 37651.70883 | E28: 37651.70883 | F28: 37651.70883 | G28: 37651.70883 | H28: 37651.70883 | I28: 37651.70883 | J28: 37651.70883 | K28: 37651.70883 | L28: 64858.33997 | M28: 89251.79196 | N28: 259822.7718 | O28: 89251.79196
A29: KM | B29: mold cost/part | D29: =D28/D6 -> 376.5170883 | E29: 150.6068353 | F29: 75.30341766 | G29: 37.65170883 | H29: 7.530341766 | I29: 3.765170883 | J29: 0.7530341766 | K29: 0.3765170883 | L29: 0.1297166799 | M29: 0.08925179196 | N29: 0.02598227718 | O29: 0.08925179196
A30: FK | B30: clamping force | D30: =D7*6*D23 -> 39.294 | E30: 39.294 | F30: 39.294 | G30: 39.294 | H30: 39.294 | I30: 39.294 | J30: 39.294 | K30: 39.294 | L30: 79.36184785 | M30: 120.5822473 | N30: 483.9309224 | O30: 120.5822473
A31: RC | D31: =IF(D30<500,0.93,IF(D30<800,1,IF(D30<1100,1.1,IF(D30<1600,1.2,IF(D30<3200,1.36,IF(D30<5000,1.88,IF(D30<8500,2.46,3.6))))))) -> 0.93 | E31: 0.93 | F31: 0.93 | G31: 0.93 | H31: 0.93 | I31: 0.93 | J31: 0.93 | K31: 0.93 | L31: 0.93 | M31: 0.93 | N31: 0.93 | O31: 0.93
A32: CPP | B32: working cost/part | D32: =(Main!$D18+45)*D31*D14/(D23*3600) -> 0.1491778245 | E32: =(Main!$D18+45)*E31*E14/(E23*3600) -> 0.1491778245 | F32: =(Main!$D18+45)*F31*F14/(F23*3600) -> 0.1491778245 | G32: =(Main!$D18+45)*G31*G14/(G23*3600) -> 0.1491778245 | H32: =(Main!$D18+45)*H31*H14/(H23*3600) -> 0.1491778245 | I32: =(Main!$D18+45)*I31*I14/(I23*3600) -> 0.1491778245 | J32: =(Main!$D18+45)*J31*J14/(J23*3600) -> 0.1491778245 | K32: =(Main!$D18+45)*K31*K14/(K23*3600) -> 0.1491778245 | L32: =(Main!$D18+45)*L31*L14/(L23*3600) -> 0.0738616047 | M32: =(Main!$D18+45)*M31*M14/(M23*3600) -> 0.04861240824 | N32: =(Main!$D18+45)*N31*N14/(N23*3600) -> 0.01211287224 | O32: =(Main!$D18+45)*O31*O14/(O23*3600) -> 0.04861240824
A33: GTPP | B33: grand total/part | D33: =D29+D32+Input!$A29 -> 376.8032661 | E33: =E29+E32+Input!$A29 -> 150.8930132 | F33: =F29+F32+Input!$A29 -> 75.58959549 | G33: =G29+G32+Input!$A29 -> 37.93788666 | H33: =H29+H32+Input!$A29 -> 7.816519591 | I33: =I29+I32+Input!$A29 -> 4.051348708 | J33: =J29+J32+Input!$A29 -> 1.039212001 | K33: =K29+K32+Input!$A29 -> 0.6626949128 | L33: =L29+L32+Input!$A29 -> 0.3405782846 | M33: =M29+M32+Input!$A29 -> 0.2748642002 | N33: =N29+N32+Input!$A29 -> 0.1750951494 | O33: =O29+O32+Input!$A29 -> 0.2748642002

Sheet Input (hidden)
A2: Flat - negiglble depth
A3: Box
A4: cylinderical
A5: 2 | B5: SHAPE
A6: Simple | C6: 28.5 | E6: 0
A7: Intermediate | C7: 172.5 | E7: 200
A8: Complex | C8: 445 | E8: 500
A9: 2 | B9: GCOMP | C9: =IF(A9=1,C6,IF(A9=2,C7,C8)) -> 172.5 | D9: GC | E9: =IF(A9=1,E6,IF(A9=2,E7,E8)) -> 200 | F9: PSP
A11: inches
A12: cm
A13: 1 | B13: UNITS
A14: Large
A15: Intermediate
A16: Fit
A17: 2 | B17: TOL | F17: =IF(A17=1,0.8,IF(A17 =2,1,1.3)) -> 1 | G17: TF
A18: Not critical
A19: High quality opaque
A20: Transparent, optical
A21: 1 | B21: FIN | F21: =IF(A21=1,0.7,IF(A21=2,1,1.4)) -> 0.7 | G21: FF
A23: ABS | B23: 0.7 | C23: cts/cm3
A24: Polycarbonate | B24: 0.885
A25: Nylon | B25: 0.412
A26: Polypropylene | B26: 0.137
A27: Polystyrene | B27: 0.137
A28: 5 | B28: MATLL
A29: =IF(A28=1,B23,IF(A28=2,B24,IF(A28=3,B25,IF(A28=4,B26,B27)))) -> 0.137 | B29: COST/cm3
A30: =A29*16.38 -> 2.24406 | B30: COST/in3
A31: =A30*0.01 -> 0.0224406 | B31: $/in3
